bitfinex-derivatives/quotes_SOLF0:USTF0_20250310
["timestamp","ask_amount","ask_price","bid_price","bid_amount"]
[1741632117731,70.24409523,118.18,118.07,66.21459523]
[1741632117926,66.21459523,118.16,118.06,55.3]
[1741632118128,66.21459523,118.16,118.06,63.7741]
[1741632118327,66.21459523,118.16,118.06,55.3]
[1741632118537,66.21459523,118.16,118.06,59.5069]
[1741632118740,8.4677,118.16,118.07,66.21459523]
[1741632118940,0.05471581,118.12,118.1,0.06324349]
[1741632119140,0.05471581,118.12,118.11,63.7705]
[1741632119435,0.06156889,118.13,118.11,63.7705]
[1741632119635,0.06156889,118.13,118.12,8.47]
[1741632119831,0.06156889,118.13,118.11,55.3]
[1741632120035,0.06156889,118.13,118.11,55.36246764]
[1741632120737,4.0295,118.18,118.13,8.4688]
[1741632120939,8.3901,118.19,118.11,55.3]
[1741632121335,8.466,118.18,118.14,8.4685]
[1741632121531,4.1156,118.23,118.09,66.21459523]
[1741632121736,4.1156,118.23,118.13,66.21459523]
[1741632121737,12.1731,118.23,118.13,66.21459523]
[1741632121938,8.4632,118.22,118.17,8.466]
[1741632122141,12.1731,118.23,118.18,55.3]
[1741632122142,4.0415,118.23,118.18,55.3]
[1741632122340,0.01078815,118.19,118.18,63.7657]
[1741632122635,342.7974,118.29,118.19,0.05990234]
[1741632122636,66.21459523,118.27,118.19,0.05990234]
[1741632122944,70.48299523,118.28,118.18,55.3]
[1741632123246,66.21459523,118.26,118.18,55.3]
[1741632123546,0.05857317,118.23,118.21,0.05407217]
[1741632125647,4.2684,118.28,118.22,55.28]
[1741632125841,345.45459523,118.34,118.22,55.28]
[1741632126036,12.3047,118.33,118.22,59.3495]
[1741632126244,66.21459523,118.32,118.22,59.3495]
[1741632126444,66.21459523,118.3,118.22,59.3495]
[1741632126742,0.0613221,118.27,118.25,0.06484468]
[1741632127450,8.46,118.26,118.25,0.06484468]
[1741632127746,0.0613221,118.27,118.19,55.28]
[1741632127945,8.462,118.24,118.19,55.28]
[1741632128145,4.2284,118.27,118.19,55.28]
[1741632128449,4.2284,118.27,118.19,121.49459523]
[1741632128638,8.4594,118.27,118.21,8.463]
[1741632128843,0.06003454,118.24,118.22,0.06286936]
[1741632129044,66.21459523,118.3,118.19,121.49459523]
[1741632129240,8.461,118.25,118.22,0.06220444]
[1741632129547,0.05526315,118.24,118.19,121.49459523]
[1741632129743,0.05526315,118.24,118.22,0.05977408]
[1741632130342,8.4621,118.23,118.22,0.05977408]
[1741632132044,0.05526315,118.24,118.16,55.26]
[1741632132244,66.21459523,118.26,118.16,55.26]
[1741632132750,4.3035,118.27,118.18,66.21459523]
[1741632132965,4.3035,118.27,118.17,55.26]
[1741632132966,4.0319,118.3,118.2,66.21459523]
[1741632133149,0.05856413,118.24,118.22,66.21459523]
[1741632133350,8.4585,118.28,118.23,8.4617]
[1741632133853,4.0319,118.3,118.22,66.21459523]
[1741632134250,12.603,118.33,118.24,66.21459523]
[1741632134449,0.06067408,118.27,118.26,66.21459523]
[1741632134653,70.20089523,118.36,118.26,66.21459523]
[1741632134850,8.4547,118.34,118.26,66.21459523]
[1741632135162,70.20089523,118.36,118.26,66.21459523]
[1741632135858,0.06046556,118.32,118.3,0.06468901]
[1741632138963,66.27506079,118.32,118.23,55.22]
[1741632139168,66.21459523,118.34,118.23,55.22]
[1741632139366,70.20089523,118.36,118.24,66.21459523]
[1741632139860,66.21459523,118.32,118.22,66.21459523]
[1741632140062,0.06093591,118.28,118.26,0.05949275]
[1741632140866,66.27553114,118.28,118.18,66.21459523]
[1741632141164,66.21459523,118.28,118.19,55.2]
[1741632141359,4.0787,118.27,118.19,55.2]
[1741632141565,283.1224,118.31,118.2,66.21459523]
[1741632141863,8.4596,118.27,118.2,66.21459523]
[1741632142066,0.05642683,118.27,118.24,0.06159645]
[1741632142468,66.21459523,118.28,118.24,0.06159645]
[1741632142761,0.06231871,118.27,118.24,0.06159645]
[1741632144062,8.4607,118.25,118.24,0.06159645]
[1741632144465,66.21459523,118.26,118.17,191.0]
[1741632144763,66.21459523,118.26,118.17,55.2]
[1741632145068,8.4604,118.26,118.2,8.4638]
[1741632145264,4.259,118.27,118.21,55.2]
[1741632145666,8.52515566,118.25,118.23,0.047176]
[1741632146063,0.06425566,118.25,118.23,0.047176]
[1741632149671,8.52505566,118.25,118.23,0.047176]
[1741632149871,0.06425566,118.25,118.23,0.047176]
[1741632151771,287.3867,118.31,118.24,55.18]
[1741632151966,8.3467,118.31,118.24,55.18]
[1741632152172,8.4598,118.27,118.24,55.18]
[1741632152970,8.51978855,118.27,118.24,55.23845961]
[1741632153274,8.51978855,118.27,118.24,63.69985961]
[1741632153475,0.05998855,118.27,118.24,55.23845961]
[1741632154176,0.05998855,118.27,118.24,121.45305484]
[1741632154374,0.05998855,118.27,118.24,129.91415484]
[1741632154575,0.05998855,118.27,118.24,121.45305484]
[1741632154976,0.05998855,118.27,118.26,8.46]
[1741632155176,0.05998855,118.27,118.24,55.23845961]
[1741632155678,0.05998855,118.27,118.24,0.05845961]
[1741632156676,0.05998855,118.27,118.25,8.4602]
[1741632156865,0.05998855,118.27,118.24,0.05845961]
[1741632157070,0.05998855,118.27,118.24,40.8491853]
[1741632157269,4.0787,118.32,118.24,40.8491853]
[1741632157479,4.0787,118.32,118.24,44.80512569]
[1741632158072,8.4589,118.28,118.24,53.26602569]
[1741632158274,0.05642576,118.27,118.25,0.06001387]
[1741632158577,8.4573,118.3,118.25,0.06001387]
[1741632158774,4.0787,118.32,118.25,0.06001387]
[1741632159176,8.4569,118.31,118.25,0.06001387]
[1741632159680,0.05468664,118.29,118.25,0.06001387]
[1741632160280,0.05468664,118.29,118.26,8.4598]
[1741632160581,0.05468664,118.29,118.26,55.14]
[1741632161077,0.05468664,118.29,118.26,95.93072569]
[1741632161269,4.2779,118.37,118.26,95.93072569]
[1741632161777,8.4546,118.34,118.26,95.93072569]
[1741632162179,45.06862569,118.37,118.26,95.93072569]
[1741632162380,0.05523982,118.31,118.29,0.05483921]
[1741632162581,45.06862569,118.37,118.26,95.93072569]
[1741632162777,0.05466161,118.31,118.3,8.4571]
[1741632162981,45.06862569,118.37,118.26,95.93072569]
[1741632163279,0.06113766,118.32,118.29,0.05818718]
[1741632163475,8.4568,118.31,118.26,104.39032569]
[1741632163671,0.06113766,118.32,118.29,0.05658896]
[1741632164077,8.4569,118.31,118.29,0.05658896]
[1741632164379,0.06113766,118.32,118.29,0.05658896]
[1741632165082,8.51723766,118.32,118.29,0.05658896]
[1741632165282,0.06113766,118.32,118.29,0.05658896]
[1741632167285,0.06113766,118.32,118.29,8.51408896]
[1741632167578,0.06113766,118.32,118.29,0.05658896]
[1741632167782,0.06113766,118.32,118.3,55.08]
[1741632168173,0.06113766,118.32,118.31,8.4564]
[1741632168580,0.06113766,118.32,118.3,55.08]
[1741632169385,8.51713766,118.32,118.3,55.08]
[1741632169585,0.06113766,118.32,118.3,55.08]
[1741632169987,8.4564,118.31,118.3,55.08]
[1741632170287,0.06113766,118.32,118.29,0.05658896]
[1741632171084,0.06113766,118.32,118.29,8.51408896]
[1741632171676,0.06113766,118.32,118.29,0.05658896]
[1741632172284,0.06113766,118.32,118.3,8.4571]
[1741632173979,4.2779,118.37,118.29,0.05658896]
[1741632174182,8.307,118.4,118.3,40.79072569]
[1741632174387,8.307,118.4,118.31,8.4548]
[1741632174589,8.4535,118.36,118.32,63.4953]
[1741632175083,8.4535,118.36,118.32,55.04]
[1741632175280,8.307,118.4,118.32,55.04]
[1741632175281,8.51599492,118.35,118.33,0.05915019]
[1741632175480,0.06239492,118.35,118.33,0.05915019]
[1741632175681,12.6415,118.4,118.33,0.05915019]
[1741632175882,0.06367452,118.35,118.33,0.05915019]
[1741632176181,0.05758853,118.35,118.33,0.05915019]
[1741632176387,8.51108853,118.35,118.33,0.05915019]
[1741632176886,0.05758853,118.35,118.33,0.05915019]
[1741632177091,0.05758853,118.35,118.33,8.51405019]
[1741632177288,8.6458,118.4,118.33,0.05915019]
[1741632177792,4.1164,118.45,118.34,40.79072569]
[1741632177986,40.79072569,118.49,118.38,40.79072569]
[1741632178185,12.6608,118.49,118.4,40.79072569]
[1741632178388,0.05526033,118.45,118.42,0.05364441]
[1741632178893,0.05526033,118.45,118.44,8.4471]
[1741632179394,0.05526033,118.45,118.43,8.4476]
[1741632179599,0.05526033,118.45,118.42,40.8443701]
[1741632180992,6.033e-05,118.45,118.42,40.8443701]
[1741632181186,6.033e-05,118.45,118.44,8.4471]
[1741632182398,8.3939,118.51,118.44,40.79072569]
[1741632182594,8.3939,118.51,118.49,8.4433]
[1741632183299,8.3939,118.51,118.45,54.98]
[1741632183601,0.05357868,118.49,118.47,0.06428357]
[1741632184197,0.05357868,118.49,118.48,8.4442]
[1741632185603,0.05357868,118.49,118.47,0.06428357]
[1741632186001,7.868e-05,118.49,118.48,8.4442]
[1741632186203,8.3041,118.55,118.48,40.79072569]
[1741632186596,8.3041,118.55,118.49,54.92]
[1741632187091,49.09482569,118.55,118.49,54.92]
[1741632187401,0.05932995,118.53,118.51,0.06494965]
[1741632187602,0.05932995,118.53,118.51,8.50664965]
[1741632187798,0.05932995,118.53,118.51,0.06494965]
[1741632188806,0.05932995,118.53,118.52,8.4414]
[1741632189396,8.5864,118.58,118.55,8.4391]
[1741632189598,194.0,118.66,118.54,54.9]
[1741632189796,4.3925,118.63,118.58,8.4371]
[1741632189998,4.3925,118.63,118.58,54.9]
[1741632190197,4.3925,118.63,118.55,54.9]
[1741632190401,45.18322569,118.63,118.55,54.9]
[1741632190604,0.0561247,118.6,118.58,0.05714306]
[1741632191295,0.0561247,118.6,118.59,54.88]
[1741632192408,0.0561247,118.6,118.59,63.3164]
[1741632193014,0.0561247,118.6,118.59,54.88]
[1741632193403,0.0561247,118.6,118.58,0.05714306]
[1741632194014,8.4364,118.59,118.58,0.05714306]
[1741632194311,0.0561247,118.6,118.58,0.05714306]
[1741632194502,8.4375,118.58,118.56,54.86]
[1741632194702,4.346,118.59,118.5,40.79072569]
[1741632194912,4.346,118.59,118.5,95.63072569]
[1741632195112,12.7827,118.59,118.54,8.4396]
[1741632195304,12.7827,118.59,118.55,54.84]
[1741632195506,4.346,118.59,118.55,54.84]
[1741632195707,0.05686891,118.58,118.56,0.05372383]
[1741632196802,0.05686891,118.58,118.5,95.61072569]
[1741632197213,40.79072569,118.58,118.5,54.82]
[1741632197414,4.346,118.59,118.5,95.61072569]
[1741632197807,8.4386,118.56,118.51,8.4416]
[1741632198007,0.05837249,118.56,118.53,0.05753521]
[1741632198214,278.42,118.68,118.57,8.4374]
[1741632198409,4.3416,118.67,118.59,40.79072569]
[1741632199110,4.3416,118.67,118.63,40.79072569]
[1741632199416,278.42,118.73,118.64,54.8]
[1741632199603,40.79072569,118.69,118.62,0.05363438]
[1741632199808,0.05937679,118.66,118.6,54.8]
[1741632200009,0.05937679,118.66,118.64,0.05784626]
[1741632200205,40.79072569,118.65,118.55,245.8]
[1741632200409,4.1177,118.64,118.55,54.8]
[1741632201010,8.4355,118.61,118.55,54.8]
[1741632201214,4.3413,118.6,118.55,54.8]
[1741632201415,0.06137046,118.59,118.57,0.05417996]
[1741632201911,0.06137046,118.59,118.57,65.97572453]
[1741632202213,0.06137046,118.59,118.57,0.05417996]
[1741632204013,8.4371,118.58,118.55,54.8]
[1741632204317,54.78,118.58,118.48,65.92154457]
[1741632204507,70.03694457,118.57,118.46,65.92154457]
[1741632205219,0.05577392,118.53,118.5,0.06366503]
[1741632205414,65.97731849,118.53,118.43,65.92154457]
[1741632205614,65.92154457,118.51,118.41,65.92154457]
[1741632205818,8.4454,118.47,118.41,74.37054457]
[1741632206113,8.4454,118.47,118.41,65.92154457]
[1741632206311,54.76,118.5,118.41,65.92154457]
[1741632206312,4.3776,118.49,118.41,65.92154457]
[1741632206513,0.05961121,118.45,118.43,0.05384772]
[1741632207418,0.05961121,118.45,118.43,65.97539229]
[1741632207913,286.8014,118.52,118.44,54.78]
[1741632208119,278.36,118.52,118.46,65.92154457]
[1741632208307,8.4524,118.53,118.46,65.92154457]
[1741632208920,8.4524,118.53,118.44,120.70154457]
[1741632209116,0.05555299,118.51,118.48,0.05494264]
[1741632209617,0.05555299,118.51,118.5,65.92154457]
[1741632209815,5.299e-05,118.51,118.5,65.92154457]
[1741632210015,5.299e-05,118.51,118.5,74.36434457]
[1741632211122,8.6972,118.6,118.54,65.92154457]
[1741632211321,8.6972,118.6,118.56,65.92154457]
[1741632211514,8.6972,118.6,118.57,8.4374]
[1741632211715,8.6972,118.6,118.56,65.92154457]
[1741632211716,4.3735,118.6,118.56,65.92154457]
[1741632211916,4.3735,118.6,118.57,8.4374]
[1741632212113,2.99e-05,118.59,118.58,120.68154457]
[1741632212316,278.44,118.68,118.58,120.68154457]
[1741632212519,4.2029,118.68,118.62,65.92154457]
[1741632212728,4.0789,118.69,118.64,65.92154457]
[1741632212927,4.2029,118.72,118.64,120.68154457]
[1741632213327,8.49318309,118.69,118.66,0.06302687]
[1741632213524,0.06378309,118.69,118.66,0.06302687]
[1741632214430,8.4308,118.67,118.61,54.74]
[1741632214637,4.2069,118.66,118.6,65.92154457]
[1741632214925,12.639,118.66,118.58,120.64154457]
[1741632215131,4.2069,118.66,118.58,120.64154457]
[1741632215634,0.05849556,118.63,118.62,65.92154457]
[1741632215929,0.05849556,118.63,118.62,120.64154457]
[1741632216828,0.05849556,118.63,118.62,54.72]
[1741632217027,0.05849556,118.63,118.62,63.1543]
[1741632217222,0.05849556,118.63,118.62,129.07584457]
[1741632217425,4.0943,118.7,118.62,189.08308914]
[1741632217622,65.92154457,118.77,118.66,65.92154457]
[1741632217828,4.0943,118.76,118.66,120.62154457]
[1741632218528,4.0943,118.76,118.67,0.06332827]
[1741632218731,8.49315538,118.7,118.67,0.06332827]
[1741632218926,0.06425538,118.7,118.67,0.06332827]
[1741632219825,0.06425538,118.7,118.68,65.92154457]
[1741632220427,0.06425538,118.7,118.67,54.74332827]
[1741632221234,0.06425538,118.7,118.68,65.92154457]
[1741632221641,0.06425538,118.7,118.68,74.35124457]
[1741632221837,4.0943,118.76,118.68,131.84308914]
[1741632222037,4.2237,118.79,118.73,65.92154457]
[1741632222439,4.2237,118.79,118.72,54.68]
[1741632222633,8.4237,118.77,118.72,54.68]
[1741632222839,4.2237,118.79,118.72,54.68]
[1741632223040,0.06344115,118.76,118.73,0.06018481]
[1741632223441,0.06344115,118.76,118.69,120.60154457]
[1741632224342,8.4269,118.73,118.69,120.60154457]
[1741632224639,0.05756853,118.72,118.7,0.05566405]
[1741632224841,4.2237,118.79,118.69,54.68]
[1741632225043,0.0567784,118.72,118.7,0.05963698]
[1741632225240,54.64,118.78,118.69,54.68]
[1741632225440,8.4285,118.71,118.7,0.05868026]
[1741632225837,344.04154457,118.76,118.65,65.92154457]
[1741632226140,65.97828328,118.72,118.61,65.92154457]
[1741632226444,63.1381,118.71,118.61,65.92154457]
[1741632226744,65.92154457,118.7,118.59,120.56154457]
[1741632227039,278.12,118.69,118.59,54.64]
[1741632227241,65.92154457,118.68,118.63,0.05515086]
[1741632227440,8.4329,118.64,118.63,0.05515086]
[1741632228045,4.0536,118.65,118.58,54.62]
[1741632229140,0.0560178,118.63,118.6,0.06038453]
[1741632229738,8.435,118.61,118.6,0.06038453]
[1741632229943,0.0560178,118.63,118.6,0.06038453]
[1741632230837,8.435,118.61,118.56,120.81867902]
[1741632231033,0.0560178,118.63,118.56,120.81867902]
[1741632231238,8.434,118.63,118.56,129.25707902]
[1741632231439,4.0536,118.65,118.56,120.81867902]
[1741632231639,4.0536,118.65,118.57,65.92154457]
[1741632232143,0.06166695,118.62,118.6,0.059064]
[1741632233444,8.49646695,118.62,118.6,0.059064]
[1741632233641,0.06166695,118.62,118.6,0.059064]
[1741632234144,8.435,118.61,118.6,0.059064]
[1741632234748,8.4362,118.6,118.55,65.92154457]
[1741632235043,3.9778,118.64,118.55,65.92154457]
[1741632235849,8.4378,118.58,118.54,54.6]
[1741632236044,0.05519363,118.61,118.53,65.92154457]
[1741632236250,0.06476319,118.58,118.51,120.52154457]
[1741632237046,0.06476319,118.58,118.52,54.6]
[1741632237439,0.06476319,118.58,118.54,0.06287599]
[1741632237643,8.439,118.56,118.54,0.06287599]
[1741632237954,0.06476319,118.58,118.54,0.06287599]
[1741632238252,8.4381,118.57,118.54,0.06287599]
[1741632238452,0.06476319,118.58,118.54,0.06287599]
[1741632239047,0.06476319,118.58,118.57,65.92154457]
[1741632239345,3.9778,118.64,118.59,65.92154457]
[1741632239651,3.9778,118.64,118.57,120.52154457]
[1741632239844,8.4343,118.62,118.57,120.52154457]
[1741632240044,3.9778,118.64,118.57,120.52154457]
[1741632240446,0.0584398,118.62,118.59,0.05869344]
[1741632240748,8.4357,118.6,118.59,0.05869344]
[1741632241151,0.0584398,118.62,118.54,54.6]
[1741632241450,54.6,118.62,118.54,54.6]
[1741632241651,3.9778,118.64,118.58,65.92154457]
[1741632242152,3.9778,118.64,118.58,120.50154457]
[1741632242350,8.432,118.66,118.6,74.35674457]
[1741632242652,140.81743888,118.75,118.6,74.35674457]
[1741632242653,4.0559,118.69,118.62,65.92154457]
[1741632242854,4.0559,118.69,118.62,120.50154457]
[1741632243853,0.06053667,118.67,118.64,0.05931539]
[1741632244153,4.0559,118.69,118.64,0.05931539]
[1741632244354,0.06407646,118.67,118.64,0.05931539]
[1741632244647,8.4348,118.62,118.59,54.58]
[1741632244842,344.16154457,118.66,118.56,120.50154457]
[1741632245045,65.92154457,118.64,118.54,65.92154457]
[1741632245242,8.436,118.6,118.54,74.36104457]
[1741632245454,65.92154457,118.64,118.53,58.6872]
[1741632245654,0.05509383,118.58,118.56,0.06007817]
[1741632245851,65.92154457,118.64,118.53,54.58]
[1741632246052,0.05433432,118.58,118.56,0.05577954]
[1741632246247,0.05433432,118.58,118.53,54.58]
[1741632246553,8.5715,118.65,118.56,65.98025499]
[1741632246755,8.5715,118.65,118.58,65.92154457]
[1741632247049,8.5715,118.65,118.58,74.35824457]
[1741632247050,8.4333,118.64,118.58,74.35824457]
[1741632247251,8.5715,118.65,118.58,65.92154457]
[1741632247849,8.49750754,118.63,118.6,0.05939574]
[1741632248053,0.06390754,118.63,118.6,0.05939574]
[1741632249353,8.49790754,118.63,118.6,0.05939574]
[1741632250057,0.06390754,118.63,118.6,0.05939574]
[1741632250656,8.435,118.61,118.6,0.05939574]
[1741632250849,0.06390754,118.63,118.6,0.05939574]
[1741632251255,8.435,118.61,118.6,0.05939574]
[1741632252351,0.06390754,118.63,118.6,0.05939574]
[1741632252547,0.06390754,118.63,118.61,65.92154457]
[1741632253552,0.06390754,118.63,118.6,54.59939574]
[1741632253749,0.06390754,118.63,118.6,0.05939574]
[1741632253750,8.4348,118.62,118.6,0.05939574]
[1741632253951,0.06390754,118.63,118.6,0.05939574]
[1741632254353,8.435,118.61,118.6,0.05939574]
[1741632255057,0.06390754,118.63,118.6,0.05939574]
[1741632255259,8.4346,118.62,118.6,0.05939574]
[1741632255458,0.06390754,118.63,118.6,0.05939574]
[1741632256760,8.435,118.61,118.6,0.05939574]
[1741632256959,12.861,118.62,118.53,74.07304457]
[1741632257164,78.78254457,118.62,118.52,4.0068]
[1741632257367,8.4382,118.57,118.51,159.79983715]
[1741632257562,8.4382,118.57,118.52,8.4407]
[1741632257763,8.4382,118.57,118.51,65.92154457]
[1741632257967,8.4387,118.56,118.51,65.92154457]
[1741632258264,0.05408227,118.55,118.53,0.05476282]
[1741632258464,8.44,118.54,118.53,0.05476282]
[1741632259158,0.05408227,118.55,118.49,234.69573146]
[1741632260159,0.05408227,118.55,118.51,0.05391865]
[1741632260361,8.46288227,118.55,118.49,234.69573146]
[1741632260564,8.46288227,118.55,118.45,65.92154457]
[1741632260864,65.92154457,118.54,118.44,148.39829258]
[1741632261364,65.92154457,118.54,118.44,93.87829258]
[1741632261554,0.05573791,118.5,118.48,0.05757048]
[1741632261956,0.05573791,118.5,118.44,93.87829258]
[1741632262677,8.4455,118.47,118.44,93.87829258]
[1741632262858,278.36,118.51,118.44,93.87829258]
[1741632263061,8.4458,118.46,118.44,93.87829258]
[1741632263266,0.05377553,118.49,118.44,93.87829258]
[1741632263562,0.05966138,118.48,118.44,93.93975541]
[1741632263770,0.05966138,118.48,118.44,0.06146283]
[1741632265569,54.57966138,118.48,118.44,0.06146283]
[1741632265868,8.4464,118.45,118.44,0.06146283]
[1741632266069,4.3959,118.47,118.44,0.06146283]
[1741632266272,8.4462,118.46,118.44,0.06146283]
[1741632266677,4.3959,118.47,118.44,0.06146283]
[1741632268275,4.20616138,118.48,118.44,0.06146283]
[1741632268866,124.64770595,118.48,118.37,65.92154457]
[1741632269076,124.58804457,118.48,118.37,120.44154457]
[1741632269275,58.6665,118.48,118.39,65.92154457]
[1741632269672,58.6665,118.48,118.4,8.4495]
[1741632269876,58.6665,118.48,118.39,65.92154457]
[1741632270073,0.0556802,118.45,118.41,65.92154457]
[1741632270277,0.0556802,118.45,118.41,120.44154457]
[1741632270469,0.0556802,118.45,118.41,54.52]
[1741632272269,0.0556802,118.45,118.39,65.92154457]
[1741632272674,8.5025802,118.45,118.39,74.37184457]
[1741632272873,0.0556802,118.45,118.39,65.92154457]
[1741632273078,286.8025,118.51,118.46,8.4453]
[1741632273274,8.2908,118.55,118.46,65.92154457]
[1741632273578,8.4426,118.51,118.46,65.92154457]
[1741632273778,8.2908,118.55,118.46,65.92154457]
[1741632274085,8.2908,118.55,118.44,120.42154457]
[1741632274382,8.50104828,118.52,118.49,0.05791651]
[1741632274577,0.05924828,118.52,118.49,0.05791651]
[1741632274776,0.05924828,118.52,118.49,8.50141651]
[1741632274983,278.56,118.56,118.5,65.92154457]
[1741632275990,278.56,118.56,118.48,120.42154457]
[1741632276188,0.05831615,118.54,118.52,0.05548263]
[1741632278496,65.92154457,118.66,118.53,54.48]
[1741632278694,78.44564457,118.66,118.53,54.48]
[1741632278893,78.44564457,118.66,118.54,65.92154457]
[1741632279094,65.92154457,118.64,118.53,54.48]
[1741632279405,54.48,118.63,118.53,54.48]
[1741632279591,0.05371643,118.6,118.57,0.06159057]
[1741632280796,8.4371,118.58,118.57,0.06159057]
[1741632281197,0.05371643,118.6,118.57,0.06159057]
[1741632282400,8.4371,118.58,118.57,0.06159057]
[1741632283001,0.05371643,118.6,118.57,0.06159057]
[1741632283501,8.4371,118.58,118.57,0.06159057]
[1741632283698,54.44,118.58,118.42,278.44]
[1741632283997,12.4522,118.57,118.47,65.92154457]
[1741632284400,12.4522,118.57,118.48,8.4439]
[1741632284605,8.4407,118.53,118.48,8.4439]
[1741632284901,8.4407,118.53,118.51,0.05705722]
[1741632285806,344.36154457,118.52,118.4,373.96641023]
[1741632285999,344.36154457,118.52,118.42,70.01474457]
[1741632286199,278.44,118.52,118.42,70.01474457]
[1741632286701,278.44,118.52,118.43,54.42]
[1741632286902,0.05501462,118.48,118.46,0.05922441]
[1741632288003,0.05501462,118.48,118.46,74.42626898]
[1741632288306,0.05501462,118.48,118.46,65.98076898]
[1741632289402,0.05501462,118.48,118.46,0.05922441]
[1741632289705,8.49951462,118.48,118.46,0.05922441]
[1741632290001,0.05501462,118.48,118.46,0.05922441]
[1741632290406,0.05501462,118.48,118.46,65.98076898]
[1741632291399,65.92154457,118.63,118.47,55.90899387]
[1741632291599,4.1305,118.61,118.51,65.92154457]
[1741632291803,4.1305,118.61,118.51,120.32154457]
[1741632292494,0.05666943,118.57,118.55,0.05858794]
[1741632293297,573.72931092,118.65,118.55,120.38013251]
[1741632293497,8.4334,118.64,118.57,65.92154457]
[1741632293700,333.82001092,118.65,118.57,65.92154457]
[1741632294106,8.433,118.64,118.57,74.35894457]
[1741632294307,286.9707,118.65,118.57,65.92154457]
[1741632294608,0.05723055,118.62,118.59,65.97466668]
[1741632294808,0.05723055,118.62,118.59,120.35466668]
[1741632295509,0.05723055,118.62,118.59,128.79066668]
[1741632296105,0.05723055,118.62,118.6,8.4356]
[1741632296302,0.05723055,118.62,118.59,120.35466668]
[1741632296508,8.4907,118.68,118.63,8.4336]
[1741632296707,290.0449512,118.7,118.61,65.92154457]
[1741632296908,278.4,118.7,118.61,65.92154457]
[1741632297206,278.4,118.7,118.63,65.92154457]
[1741632297412,278.4,118.7,118.63,120.28154457]
[1741632297613,0.06311314,118.68,118.65,0.05893361]
[1741632297809,11.6449512,118.76,118.65,65.98047818]
[1741632298009,24.3512512,118.76,118.65,65.92154457]
[1741632299013,0.05344241,118.72,118.69,0.05569969]
[1741632300017,0.05344241,118.72,118.63,120.28154457]
[1741632300314,278.24,118.72,118.63,120.28154457]
[1741632300902,65.92154457,118.69,118.6,8.4356]
[1741632301102,0.06243031,118.66,118.63,0.05921291]
[1741632301316,0.06243031,118.66,118.6,54.3]
[1741632301507,0.06243031,118.66,118.63,0.05708399]
[1741632302304,8.68033031,118.66,118.63,0.05708399]
[1741632302709,278.24,118.65,118.57,8.3181]
[1741632302916,278.24,118.65,118.54,54.3]
[1741632302917,344.16154457,118.65,118.54,54.3]
[1741632303220,344.16154457,118.65,118.54,120.22154457]
[1741632303604,65.92154457,118.63,118.54,54.3]
[1741632303809,65.92154457,118.61,118.54,54.3]
[1741632304114,0.05736322,118.6,118.57,0.05339511]
[1741632304316,0.05736322,118.6,118.54,54.3]
[1741632304613,0.05736322,118.6,118.57,0.06058363]
[1741632304812,8.49366322,118.6,118.57,0.06058363]
[1741632305010,0.05736322,118.6,118.57,0.06058363]
[1741632306104,8.4371,118.58,118.57,0.06058363]
[1741632306313,278.26,118.58,118.48,78.53954457]
[1741632306510,65.92154457,118.57,118.48,54.28]
[1741632306713,65.92154457,118.57,118.46,65.92154457]
[1741632306714,65.92154457,118.55,118.45,54.28]
[1741632307014,65.92154457,118.57,118.46,65.92154457]
[1741632307217,278.26,118.58,118.48,65.92154457]
[1741632307418,0.05527482,118.53,118.5,65.97770484]
[1741632307618,0.05527482,118.53,118.5,65.92154457]
[1741632307812,0.05527482,118.53,118.5,65.98264572]
[1741632308717,8.4416,118.52,118.5,0.06110115]
[1741632308916,0.05527482,118.53,118.5,0.06110115]
[1741632309315,0.05527482,118.53,118.5,54.32110115]
[1741632309914,1.46813762,118.64,118.5,0.06110115]
[1741632310216,70.11044457,118.61,118.51,120.18154457]
[1741632310423,4.1574,118.6,118.49,65.92154457]
[1741632310616,344.22154457,118.59,118.49,120.18154457]
[1741632311012,278.3,118.59,118.49,120.18154457]
[1741632311216,0.05788537,118.55,118.53,0.06218751]
[1741632312226,0.05788537,118.55,118.53,54.32218751]
[1741632312721,8.49758537,118.55,118.53,54.32218751]
[1741632312918,68.51942994,118.55,118.42,65.92154457]
[1741632313116,65.92154457,118.53,118.42,65.92154457]
[1741632313317,8.4424,118.51,118.44,8.4467]
[1741632313514,4.3993,118.53,118.46,65.92154457]
[1741632313714,4.3296,118.54,118.47,8.4444]